bitfinex/quotes_ETHUSD_20230902
["timestamp","ask_amount","ask_price","bid_price","bid_amount"]
[1693662782263,3.0,1638.0,1637.9,0.6374714]
[1693662782463,3.48,1638.0,1637.9,0.6374714]
[1693662783532,3.48,1638.0,1637.8,1.59376387]
[1693662784155,3.48,1638.0,1637.8,0.6374714]
[1693662784355,3.48,1638.0,1637.8,1.59376387]
[1693662784666,3.48,1638.0,1637.8,0.6374714]
[1693662785463,3.48,1638.0,1637.9,0.4233897]
[1693662788034,3.48,1638.0,1637.7,3.50756387]
[1693662788237,3.48,1638.0,1637.8,1.06105074]
[1693662789865,3.48,1638.0,1637.7,0.6374714]
[1693662790075,3.48,1638.0,1637.7,1.69852645]
[1693662791483,8.11285404,1638.0,1637.7,1.69852645]
[1693662791782,8.11285404,1638.0,1637.6,2.6230714]
[1693662791783,0.48,1637.9,1637.6,2.6230714]
[1693662791945,2.031,1637.9,1637.7,1.06111996]
[1693662794683,2.031,1637.9,1637.6,1.9856]
[1693662795082,2.031,1637.9,1637.7,1.06112717]
[1693662795284,3.70363768,1637.9,1637.6,1.9856]
[1693662795580,3.0,1637.8,1637.6,1.9856]
[1693662795964,3.0,1637.8,1637.5,2.22086387]
[1693662796165,3.0,1637.8,1637.6,1.0611305]
[1693662796953,3.0,1637.8,1637.7,1.0611305]
[1693662797695,5.031,1637.9,1637.6,0.6374714]
[1693662798679,5.031,1637.9,1637.5,1.59376387]
[1693662798977,5.031,1637.9,1637.5,2.65487141]
[1693662799364,6.70363768,1637.9,1637.5,2.65487141]
[1693662800193,5.031,1637.9,1637.5,2.65487141]
[1693662800494,5.031,1637.9,1637.6,0.42360924]
[1693662801298,5.52491044,1637.9,1637.6,0.42360924]
[1693662802502,0.49391044,1637.9,1637.7,1.0610949]
[1693662802668,0.48430328,1638.1,1637.8,1.0610949]
[1693662802868,3.6522,1638.3,1637.7,1.59376387]
[1693662803097,3.08185404,1638.2,1637.7,2.65470459]
[1693662803295,3.08185404,1638.2,1637.7,4.56210459]
[1693662803497,4.63285404,1638.2,1637.8,1.06094072]
[1693662804006,3.0,1638.1,1637.8,1.06094072]
[1693662804602,3.0,1638.1,1637.8,1.69841212]
[1693662804803,3.0,1638.1,1637.8,2.15462258]
[1693662805003,3.0,1638.1,1637.9,1.06094072]
[1693662805572,3.0,1638.1,1637.8,1.09368186]
[1693662805893,3.0,1638.1,1637.9,1.06093799]
[1693662806515,3.0,1638.2,1637.9,1.06093799]
[1693662806719,3.0,1638.2,1637.8,2.04997433]
[1693662806882,3.0,1638.2,1637.9,1.06089387]
[1693662807617,3.0,1638.2,1637.9,1.69836527]
[1693662808024,3.0,1638.2,1637.8,2.04997433]
[1693662808192,3.0,1638.2,1637.9,1.06089811]
[1693662808590,3.0,1638.2,1637.9,1.69836951]
[1693662808791,3.0,1638.2,1637.8,2.04997433]
[1693662809090,3.0,1638.2,1637.9,1.06091111]
[1693662809418,3.0,1638.2,1637.9,1.69838251]
[1693662809584,3.0,1638.2,1637.9,2.00947105]
[1693662809788,3.0,1638.2,1638.0,1.06091111]
[1693662812399,3.0,1638.2,1637.9,0.6374714]
[1693662812400,4.551,1638.2,1637.9,0.6374714]
[1693662813420,4.551,1638.2,1637.8,2.01720851]
[1693662813421,1.551,1638.0,1637.8,1.69838744]
[1693662813737,5.11285404,1637.9,1637.7,0.6374714]
[1693662813897,1.551,1637.8,1637.7,1.69852961]
[1693662814113,3.89920392,1637.8,1637.7,1.69852961]
[1693662815663,3.89920392,1637.8,1637.7,2.12206566]
[1693662816521,3.89920392,1637.8,1637.7,3.07835813]
[1693662817141,3.89920392,1637.8,1637.7,2.12206566]
[1693662817452,3.89920392,1637.8,1637.7,1.48459426]
[1693662817750,3.89920392,1637.8,1637.7,2.44088673]
[1693662817959,3.0,1637.8,1637.7,3.07799736]
[1693662818261,3.0,1637.8,1637.7,2.44088673]
[1693662818846,3.0,1637.8,1637.7,3.71594336]
[1693662819166,3.0,1637.8,1637.7,2.44088673]
[1693662819510,3.0,1637.8,1637.7,2.75965089]
[1693662820157,5.0867,1637.9,1637.7,2.75965089]
[1693662820326,5.0867,1637.9,1637.8,2.65471561]
[1693662820661,5.5667,1637.9,1637.8,2.01725265]
[1693662822522,5.5667,1637.9,1637.8,3.29230928]
[1693662823534,5.5667,1637.9,1637.8,2.33611484]
[1693662826022,7.1177,1637.9,1637.8,2.2330407]
[1693662826244,7.59462316,1637.9,1637.8,2.2330407]
[1693662826434,7.59462316,1637.9,1637.8,3.29409891]
[1693662827563,7.59462316,1637.9,1637.8,2.01904228]
[1693662829565,7.59462316,1637.9,1637.8,2.65772936]
[1693662830457,7.59462316,1637.9,1637.8,1.69974529]
[1693662830662,7.59462316,1637.9,1637.8,2.12322015]
[1693662832656,7.59462316,1637.9,1637.8,1.48453307]
[1693662834475,7.59462316,1637.9,1637.8,0.42347486]
[1693662834982,7.59462316,1637.9,1637.6,0.63868708]
[1693662835181,7.59462316,1637.9,1637.6,2.18491163]
[1693662835350,7.59462316,1637.9,1637.7,1.06104177]
[1693662835879,7.59462316,1637.9,1637.6,0.48518278]
[1693662838081,5.56362316,1637.9,1637.6,0.48518278]
[1693662839764,5.56362316,1637.9,1637.6,2.18490198]
[1693662839944,5.56362316,1637.9,1637.7,1.06103265]
[1693662840359,5.56362316,1637.9,1637.6,0.48518278]
[1693662840759,3.47692316,1637.9,1637.6,2.18498653]
[1693662840974,0.47692316,1637.9,1637.7,1.06103535]
[1693662841159,6.7052,1638.0,1637.7,1.06103535]
[1693662841371,9.78705404,1638.0,1637.7,1.06103535]
[1693662841884,10.28353428,1638.0,1637.7,1.06103535]
[1693662845760,10.28353428,1638.0,1637.8,0.42346287]
[1693662846487,10.28353428,1638.0,1637.6,1.12395118]
[1693662846793,10.28353428,1638.0,1637.7,1.06101095]
[1693662849788,0.48918647,1638.3,1637.7,0.6387684]
[1693662850090,3.08185404,1638.3,1637.8,1.59692101]
[1693662850291,5.16255404,1638.3,1637.8,1.59692101]
[1693662850592,5.16255404,1638.3,1637.8,2.65793196]
[1693662851270,3.0,1638.2,1637.8,2.65793196]
[1693662851681,3.0,1638.2,1637.9,1.06101095]
[1693662851857,3.0,1638.2,1637.8,0.6387684]
[1693662852059,3.0,1638.2,1637.8,1.69963024]
[1693662860766,3.0,1638.2,1637.9,0.4233897]
[1693662864575,3.48114567,1638.2,1637.9,0.4233897]
[1693662865606,3.18140184,1638.2,1637.9,0.4233897]
[1693662869500,3.18140184,1638.2,1637.7,3.49822101]
[1693662869685,3.18140184,1638.2,1637.8,2.04947816]
[1693662869885,3.18140184,1638.2,1637.9,1.06088766]
[1693662870512,3.18140184,1638.2,1637.8,0.9885905]
[1693662870726,3.18140184,1638.2,1637.9,1.06088262]
[1693662875523,3.18140184,1638.2,1638.0,0.42331654]
[1693662876433,3.18140184,1638.2,1637.8,0.9885905]
[1693662876662,2.216,1638.1,1637.9,1.06088914]
[1693662878907,5.83759422,1638.1,1637.7,2.5400684]
[1693662879113,3.48,1638.0,1637.8,1.06095758]
[1693662879339,3.48,1638.0,1637.7,0.6387684]
[1693662880106,3.48,1638.0,1637.7,1.69972956]
[1693662880312,3.48,1638.0,1637.8,1.06096116]
[1693662880511,3.48,1638.0,1637.7,0.6387684]
[1693662886251,3.48,1638.0,1637.7,1.69973914]
[1693662886447,3.48,1638.0,1637.7,2.285142]
[1693662886655,3.48,1638.0,1637.8,1.06097074]
[1693662888962,3.0,1638.0,1637.7,3.24329461]
[1693662889249,5.216,1638.1,1637.8,1.69968024]
[1693662890538,5.216,1638.1,1637.9,0.39692784]
[1693662912157,8.316,1638.1,1637.9,0.39692784]
[1693662932299,8.316,1638.1,1637.9,0.49659016]
[1693662948127,8.316,1638.1,1638.0,1.06091491]
[1693662948493,8.316,1638.1,1638.0,1.55742264]
[1693662951024,6.1,1638.1,1638.0,1.55742264]
[1693662952790,3.1,1638.1,1638.0,1.55742264]
[1693662953003,3.0679,1638.1,1638.0,1.13622118]
[1693662953209,3.0679,1638.1,1638.0,2.51280672]
[1693662954115,3.0679,1638.1,1638.0,1.87309327]
[1693662955399,3.0679,1638.1,1638.0,2.83266344]
[1693662955621,3.0679,1638.1,1638.0,3.15252017]
[1693662955816,3.0679,1638.1,1638.0,4.11107988]
[1693662956170,5.16533314,1638.9,1638.1,1.04748039]
[1693662956430,5.16533314,1638.9,1638.3,2.18934322]
[1693662956431,10.30098718,1638.9,1638.3,2.18934322]
[1693662956619,10.30098718,1638.9,1638.4,1.06091491]
[1693662956930,11.85198718,1638.9,1638.4,0.49623135]
[1693662957132,11.85198718,1638.9,1638.4,2.35103135]
[1693662957328,12.91595482,1638.9,1638.4,2.35103135]
[1693662957499,13.09840891,1638.9,1638.4,2.35103135]
[1693662958532,1.551,1638.8,1638.4,2.35103135]
[1693662959231,2.0538,1638.7,1638.4,2.35103135]
[1693662959431,5.0538,1638.7,1638.4,2.35103135]
[1693662962929,5.0538,1638.7,1638.4,0.49623135]
[1693662963129,0.50538,1638.6,1638.4,0.49623135]
[1693662963435,3.50538,1638.6,1638.2,2.59424322]
[1693662963632,3.0,1638.6,1638.3,1.0606034]
[1693662963845,2.0527,1638.5,1638.3,1.0606034]
[1693662965528,2.0527,1638.5,1638.4,0.49623135]
[1693662965933,5.1527,1638.5,1638.2,3.55175806]
[1693662966136,5.1527,1638.5,1638.2,4.28849331]
[1693662966440,5.1527,1638.5,1638.3,1.0605964]
[1693662967312,5.1527,1638.5,1638.3,1.69893962]
[1693662968716,2.0527,1638.5,1638.3,1.69893962]
[1693662972563,2.0527,1638.5,1638.3,2.65645446]
[1693662976173,2.0527,1638.5,1638.4,1.69893962]
[1693662976546,2.0527,1638.5,1638.4,0.63834322]
[1693662980673,2.0527,1638.5,1638.4,1.13457457]
[1693662980841,2.0527,1638.5,1638.4,2.19517097]
[1693662991385,3.0,1638.6,1638.4,2.19517097]
[1693662991557,3.0,1638.6,1638.5,1.0605964]
[1693662991759,0.49680578,1638.7,1638.5,1.69893962]
[1693662991955,5.0648,1638.8,1638.5,1.69893962]
[1693662995705,5.0648,1638.8,1638.6,0.49597938]
[1693662997207,5.0648,1638.8,1638.7,1.06055759]
[1693663005064,5.0648,1638.8,1638.6,0.49597938]
[1693663008800,5.0648,1638.8,1638.5,0.63834322]
[1693663008993,3.0,1638.8,1638.5,2.09303583]
[1693663009195,0.47750251,1638.9,1638.6,1.06054308]
[1693663009505,2.2358,1638.9,1638.6,1.06054308]
[1693663009874,2.2358,1638.9,1638.7,1.06043313]
[1693663010078,5.2358,1638.9,1638.5,1.99000759]
[1693663010279,5.2358,1638.9,1638.6,1.06043051]
[1693663010685,5.2358,1638.9,1638.7,0.49237796]
[1693663011485,5.2358,1638.9,1638.5,1.03249275]
[1693663011681,5.2358,1638.9,1638.6,1.06043369]
[1693663011899,0.49188376,1639.0,1638.6,1.06043369]
[1693663012095,0.49188376,1639.0,1638.7,1.06043369]
[1693663012303,2.1261,1639.1,1638.7,1.06043369]
[1693663012499,2.1261,1639.1,1638.6,3.51435806]
[1693663012699,2.1261,1639.1,1638.7,1.41180118]
[1693663012902,2.1261,1639.1,1638.7,0.35143581]
[1693663013303,5.1261,1639.1,1638.7,0.35143581]
[1693663015486,2.0754,1639.0,1638.7,0.35143581]
[1693663015773,5.0754,1639.0,1638.6,2.55684322]
[1693663015997,5.0754,1639.0,1638.6,1.9185]
[1693663016194,5.0754,1639.0,1638.5,1.99000759]
[1693663016398,6.9064,1639.0,1638.6,1.06039758]
[1693663020628,9.98825404,1639.0,1638.6,1.06039758]
[1693663020829,11.14217944,1639.0,1638.6,1.06039758]
[1693663022034,6.9064,1639.0,1638.6,1.06039758]
[1693663023525,5.0754,1639.0,1638.6,1.06039758]
[1693663025721,5.0754,1639.0,1638.7,0.49238976]
[1693663026634,5.0754,1639.0,1638.5,2.88109275]
[1693663026850,5.0754,1639.0,1638.6,1.06041287]
[1693663027000,5.0754,1639.0,1638.6,1.45456343]
[1693663027298,5.0754,1639.0,1638.6,0.39415056]
[1693663030144,2.1131,1638.9,1638.6,0.39415056]
[1693663030311,5.1131,1638.9,1638.6,0.39415056]
[1693663032516,5.1131,1638.9,1638.5,2.88109275]
[1693663032721,2.1218,1638.8,1638.6,1.06042849]
[1693663040458,2.1218,1638.8,1638.7,0.49238976]
[1693663040854,2.1218,1638.8,1638.5,2.88109275]
[1693663041151,2.1218,1638.8,1638.6,1.06045339]
[1693663042455,2.1218,1638.8,1638.6,1.454608]
[1693663042747,2.1218,1638.8,1638.6,0.39415461]
[1693663052860,2.1218,1638.8,1638.6,2.09294901]
[1693663053149,2.1218,1638.8,1638.7,1.06045118]
[1693663054256,2.1218,1638.8,1638.7,1.06044204]
[1693663054754,5.1218,1638.8,1638.7,1.06044204]
[1693663054960,5.1218,1638.8,1638.6,1.69880978]
[1693663055161,5.1218,1638.8,1638.7,1.06044204]
[1693663055527,5.1218,1638.8,1638.7,0.49238976]
[1693663055731,5.1218,1638.8,1638.7,1.5528318]
[1693663056462,16.88211404,1638.8,1638.7,0.49238976]
[1693663056631,21.93862404,1638.8,1638.7,0.49238976]
[1693663056831,17.36211404,1638.8,1638.7,0.49238976]
[1693663057031,17.36211404,1638.8,1638.4,0.63836774]
[1693663057231,6.84906544,1638.7,1638.4,1.69893159]
[1693663057460,6.84906544,1638.7,1638.5,1.06056385]
[1693663057631,6.84906544,1638.7,1638.4,0.63836774]
[1693663059369,1.551,1638.5,1638.3,0.63836774]
[1693663059669,1.551,1638.5,1638.3,1.06064149]
[1693663059874,1.551,1638.5,1638.3,1.69900923]
[1693663060067,1.551,1638.5,1638.4,1.06060448]
[1693663060756,6.631,1638.6,1638.4,1.06060448]
[1693663060941,11.09663058,1638.6,1638.3,0.63845871]
[1693663062157,11.09663058,1638.6,1638.2,2.65675944]
[1693663064277,11.09663058,1638.6,1638.3,1.06061266]
[1693663064479,11.09663058,1638.6,1638.2,0.63845871]
[1693663064644,9.71285404,1638.6,1638.2,2.65676062]
[1693663064845,9.71285404,1638.6,1638.3,1.06061384]
[1693663065044,9.71285404,1638.6,1638.2,0.63845871]
[1693663065243,9.71285404,1638.6,1638.2,1.69907416]
[1693663070484,9.71285404,1638.6,1638.3,1.0606076]
[1693663070684,9.51585404,1638.5,1638.3,0.49266604]
[1693663070870,5.031,1638.4,1638.3,0.49266604]
[1693663071053,8.11285404,1638.4,1638.0,1.59449197]
[1693663071253,2.2178,1638.3,1638.0,1.69851839]
[1693663071445,2.2178,1638.3,1638.0,5.0825991]
[1693663071650,2.2178,1638.3,1638.1,1.0607216]
[1693663073472,2.2178,1638.3,1638.0,0.63779679]
[1693663075283,2.2178,1638.3,1638.0,1.59449197]
[1693663078183,2.2178,1638.3,1638.1,0.63779679]
[1693663083304,2.69475615,1638.3,1638.1,0.63779679]
[1693663085705,2.69475615,1638.3,1638.2,0.49030424]
[1693663086000,5.69475615,1638.3,1638.2,1.55103494]
[1693663088305,6.77551717,1638.3,1638.2,1.55103494]
[1693663089006,9.85737121,1638.3,1638.2,1.55103494]
[1693663089173,10.33737121,1638.3,1638.2,1.55103494]
[1693663090307,10.33737121,1638.3,1638.2,0.49030424]
[1693663090681,10.33737121,1638.3,1638.0,0.63779679]
[1693663091009,3.0,1638.2,1638.0,1.59449197]
[1693663091209,5.1941,1638.2,1638.0,1.59449197]
[1693663093803,5.1941,1638.2,1638.0,2.65529138]
[1693663094009,5.1941,1638.2,1638.1,1.06079941]
[1693663094204,5.1941,1638.2,1638.1,1.6985962]
[1693663094406,5.1941,1638.2,1638.1,0.63779679]
[1693663099946,15.32843506,1638.2,1638.0,1.6985962]
[1693663100133,0.48,1638.1,1638.0,0.63779679]
[1693663100447,0.48,1638.1,1637.9,1.39815688]
[1693663100600,2.5345,1638.1,1637.9,1.39815688]
[1693663100801,2.5345,1638.1,1638.0,2.17483254]
[1693663101036,7.10138351,1638.1,1638.0,2.17483254]
[1693663101755,10.18323755,1638.1,1638.0,2.17483254]
[1693663102048,20.89117755,1638.1,1638.0,1.53703575]
[1693663102614,16.31270755,1638.1,1638.0,1.53703575]
[1693663102802,22.74670755,1638.1,1638.0,1.53703575]
[1693663103142,27.32517755,1638.1,1638.0,1.53703575]
[1693663103348,22.74670755,1638.1,1638.0,1.53703575]
[1693663104202,27.32517755,1638.1,1638.0,1.53703575]
[1693663104603,22.74670755,1638.1,1638.0,1.53703575]
[1693663105050,27.32517755,1638.1,1638.0,1.53703575]
[1693663106396,27.32517755,1638.1,1638.0,0.4761465]
[1693663106596,27.32517755,1638.1,1637.8,0.63779679]
[1693663106843,1.551,1637.9,1637.8,1.69882678]
[1693663107051,5.11285404,1637.9,1637.8,1.69882678]
[1693663107351,12.69188404,1637.9,1637.8,1.69882678]
[1693663107529,8.11285404,1637.9,1637.8,0.63779679]
[1693663107944,7.47623676,1637.9,1637.8,0.63779679]
[1693663108253,9.61996121,1637.9,1637.8,1.69882678]
[1693663109146,9.61996121,1637.9,1637.8,0.63779679]
[1693663110337,9.61996121,1637.9,1637.8,1.69882678]
[1693663110659,3.91438272,1637.9,1637.8,0.63779679]
[1693663110955,1.86830599,1637.9,1637.8,0.9568018]
[1693663111256,1.73562835,1638.1,1637.8,0.9568018]
[1693663111436,4.81748239,1638.1,1637.9,0.63759901]
[1693663111929,4.63285404,1638.1,1637.9,0.63759901]
[1693663113049,3.0,1638.0,1637.9,0.63759901]
[1693663114060,6.56185404,1638.0,1637.9,0.63759901]
[1693663114238,6.56185404,1638.0,1637.9,1.06102999]
[1693663114751,6.56185404,1638.0,1637.8,2.6554308]
[1693663114922,8.67165404,1638.0,1637.9,1.698629]
[1693663115104,8.67165404,1638.0,1637.9,0.63759901]
[1693663115299,8.67165404,1638.0,1637.9,1.06102999]
[1693663115851,8.67165404,1638.0,1637.9,1.53784292]
[1693663120360,8.67165404,1638.0,1637.9,0.47681293]
[1693663120507,8.67165404,1638.0,1637.9,1.53774794]
[1693663120821,8.67165404,1638.0,1637.9,1.53774688]
[1693663122531,10.22265404,1638.0,1637.9,1.53774688]
[1693663122743,11.93791703,1638.0,1637.9,1.53774688]
[1693663125551,10.22265404,1638.0,1637.9,1.53774688]
[1693663126746,8.67165404,1638.0,1637.9,1.53774688]
[1693663133980,8.67165404,1638.0,1637.9,0.47681293]
[1693663134482,8.67165404,1638.0,1637.7,3.4996169]
[1693663134676,8.67165404,1638.0,1637.9,0.47681293]
[1693663135078,8.67165404,1638.0,1637.7,3.4996169]
[1693663135390,8.67165404,1638.0,1637.8,1.06095653]
[1693663141372,8.67165404,1638.0,1637.8,1.69868855]
[1693663143293,2.04697584,1638.1,1637.8,2.15474589]
[1693663143494,0.49597584,1638.1,1637.9,1.06095653]
[1693663143662,4.12845615,1638.3,1637.9,1.06095653]
[1693663143866,3.08185404,1638.2,1637.9,1.06095653]
[1693663144190,3.08185404,1638.2,1637.9,1.37208961]
[1693663144392,3.08185404,1638.2,1638.0,1.06095653]
[1693663144607,3.08185404,1638.2,1637.9,0.31113308]
[1693663144774,3.0,1638.1,1637.9,2.00973815]
[1693663144982,3.0,1638.1,1638.0,1.06087305]
[1693663145677,3.0,1638.1,1638.0,1.53762572]
[1693663147871,4.551,1638.1,1638.0,1.53762572]
[1693663148806,4.551,1638.1,1638.0,0.47675267]
[1693663148807,13.19383944,1638.1,1638.0,0.47675267]
[1693663149012,13.67383944,1638.1,1638.0,0.47675267]
[1693663149214,13.67383944,1638.1,1637.7,3.4996169]
[1693663149390,3.6228,1638.0,1637.8,1.06096879]
[1693663149585,3.0,1637.9,1637.8,1.06096879]
[1693663150091,3.0,1637.9,1637.8,1.69870081]
[1693663152415,3.0,1637.9,1637.8,1.06096879]
[1693663152718,3.0,1637.9,1637.8,1.69988421]
[1693663156614,3.0,1637.9,1637.8,1.06093873]
[1693663160697,3.0,1637.9,1637.8,1.52383031]
[1693663162621,3.0,1637.9,1637.8,1.52390522]
[1693663168436,5.671158,1637.9,1637.8,0.46289158]
[1693663168590,6.151158,1637.9,1637.8,0.46289158]
[1693663168786,9.23301204,1637.9,1637.6,3.50746213]
[1693663168991,9.23301204,1637.9,1637.7,1.061045]
[1693663169219,0.9233012,1637.8,1637.6,0.63938485]
[1693663169420,2.0452,1637.8,1637.6,0.63938485]
[1693663171972,3.5962,1637.8,1637.6,0.63938485]
[1693663172146,3.0,1637.7,1637.6,0.63938485]
[1693663175762,3.0,1637.7,1637.6,1.10242062]
[1693663175962,3.0,1637.7,1637.6,1.52410318]
[1693663180945,4.551,1637.7,1637.6,1.52410318]
[1693663181145,5.21062,1637.7,1637.6,1.52410318]
[1693663181868,5.21062,1637.7,1637.6,0.46303577]
[1693663182376,5.21062,1637.7,1637.4,2.66488485]
[1693663182567,4.551,1637.7,1637.5,1.06113534]
[1693663184347,6.722,1637.7,1637.5,1.06113534]
[1693663185387,9.80385404,1637.7,1637.5,1.06113534]
[1693663190798,9.80385404,1637.7,1637.6,0.44985193]
[1693663191092,10.28385404,1637.7,1637.6,0.44985193]
[1693663191580,10.77014858,1637.7,1637.4,2.66488485]
[1693663191776,10.77014858,1637.7,1637.5,1.06113967]
[1693663191981,11.84716344,1637.7,1637.5,1.06113967]
[1693663198512,10.77014858,1637.7,1637.5,1.06113967]
[1693663200403,3.48629454,1637.7,1637.5,1.06113967]
[1693663200576,0.48629454,1637.7,1637.5,1.06113967]
[1693663200770,3.0,1637.8,1637.5,1.70052452]
[1693663202246,3.0,1637.8,1637.5,2.6596018]
[1693663202418,5.03502177,1637.9,1637.5,2.6596018]
[1693663203215,5.03502177,1637.9,1637.6,1.70052452]
[1693663203413,5.03502177,1637.9,1637.7,1.06113967]
[1693663203624,5.03502177,1637.9,1637.6,0.63938485]
[1693663203625,3.48402177,1637.9,1637.6,0.63938485]
[1693663204421,0.18166206,1638.2,1637.7,1.59846213]
[1693663204743,8.04428,1638.4,1637.8,0.63938485]
[1693663204898,3.5783953,1638.3,1637.8,1.70041642]
[1693663205228,9.21083404,1638.3,1637.8,2.16423579]
[1693663205390,4.63285404,1638.3,1637.9,1.06103157]
[1693663206124,0.48,1638.2,1637.9,1.06103157]
[1693663206425,3.56185404,1638.2,1637.9,1.06103157]
[1693663207529,3.0,1638.1,1637.9,1.06103157]
[1693663211133,4.551,1638.3,1637.9,1.06103157]
[1693663211953,3.0,1638.3,1637.9,1.06103157]
[1693663213715,3.0,1638.3,1637.8,1.10155167]
[1693663213953,3.0,1638.3,1637.9,1.06084867]
[1693663214342,3.0,1638.3,1637.9,1.50985504]
[1693663214544,3.0,1638.3,1637.9,0.44900637]
[1693663217956,4.551,1638.3,1637.9,0.44900637]
[1693663222178,2.2381,1638.2,1637.9,0.44900637]
[1693663222668,5.2381,1638.2,1638.0,1.06084923]
[1693663222841,5.2381,1638.2,1637.9,1.08673867]
[1693663223028,5.2381,1638.2,1638.0,1.06084923]
[1693663227180,5.2381,1638.2,1638.1,0.44834713]
[1693663227539,5.2381,1638.2,1637.9,2.5977323]
[1693663227740,5.2381,1638.2,1638.0,1.06084799]
[1693663229585,5.11285404,1638.1,1637.7,0.6377323]
[1693663229883,1.551,1637.9,1637.7,1.69872756]
[1693663230077,1.551,1637.9,1637.6,31.50433076]
[1693663230379,3.6673,1637.9,1637.7,1.06103265]
[1693663230538,3.0,1637.8,1637.6,1.59433076]
[1693663230734,3.0,1637.8,1637.7,1.06103361]
[1693663231156,3.0,1637.8,1637.6,0.6377323]
[1693663232661,3.0,1637.8,1637.6,1.59433076]
[1693663236383,1.551,1637.7,1637.6,0.6377323]
[1693663236697,1.551,1637.7,1637.5,2.65544646]
[1693663236894,3.7036,1637.7,1637.5,2.65544646]
[1693663237205,3.0,1637.6,1637.5,2.65544646]
[1693663237507,2.36332726,1637.6,1637.5,3.23456757]
[1693663238397,2.36332726,1637.6,1637.5,2.65544646]
[1693663240160,2.36332726,1637.6,1637.5,2.01771416]
[1693663240372,2.36332726,1637.6,1637.5,2.01788783]
[1693663242405,2.36332726,1637.6,1637.5,2.45360753]
[1693663243720,5.1526,1637.7,1637.5,2.45360753]
[1693663243890,5.1526,1637.7,1637.6,1.69904659]
[1693663246215,5.1526,1637.7,1637.6,1.06111349]
[1693663248514,12.44737935,1638.5,1637.6,2.00820065]
[1693663248515,3.56185404,1638.1,1637.6,2.00820065]
[1693663248815,2.0501,1638.0,1637.7,1.69904659]
[1693663249010,5.13195404,1638.0,1637.7,1.69904659]
[1693663249214,2.0501,1638.0,1637.7,1.69904659]
[1693663249415,2.0501,1638.0,1637.7,2.19098409]
[1693663249621,2.0501,1638.0,1637.8,1.06111349]
[1693663249781,5.0501,1638.0,1637.8,1.06111349]
[1693663250814,2.0501,1638.0,1637.8,1.06111349]
[1693663251815,2.0501,1638.0,1637.7,0.4919375]
[1693663254690,1.551,1638.0,1637.8,1.06102835]
[1693663255021,1.551,1638.0,1637.7,1.1298706]
[1693663255222,1.551,1638.0,1637.8,1.06101905]
[1693663255602,1.551,1638.0,1637.7,0.4919375]
[1693663255902,3.7278,1638.1,1637.7,0.4919375]
[1693663256102,0.48,1638.0,1637.7,0.4919375]
[1693663257020,2.1768,1638.1,1637.8,0.6379331]
[1693663257323,5.1768,1638.1,1637.8,2.13475832]
[1693663257535,5.1768,1638.1,1637.9,1.06101469]
[1693663259735,5.1768,1638.1,1637.8,0.43581053]
[1693663260335,5.1768,1638.1,1637.8,1.07374363]
[1693663260544,5.1768,1638.1,1637.9,1.06089785]
[1693663261201,3.0,1638.1,1637.9,1.06089785]
[1693663261502,2.04851595,1638.2,1637.9,1.06089785]
[1693663261703,0.49751595,1638.2,1637.9,1.06089785]
[1693663261901,1.551,1638.3,1637.9,1.06089785]
[1693663262137,4.63285404,1638.3,1637.9,1.474742]
[1693663262336,3.0,1638.2,1637.9,0.41384415]
[1693663262505,5.0385,1638.2,1637.9,0.41384415]
[1693663272466,5.0385,1638.2,1638.0,0.43566635]
[1693663273954,5.0385,1638.2,1638.0,0.38566635]
[1693663276282,5.51741109,1638.2,1638.0,0.38566635]
[1693663276983,5.51741109,1638.2,1638.0,0.43412369]
[1693663277274,5.51741109,1638.2,1637.8,2.6417331]
[1693663277443,2.0228,1638.1,1637.9,1.06088132]
[1693663281687,2.0228,1638.1,1638.0,0.43095932]
[1693663282185,2.0228,1638.1,1637.8,3.24181751]
[1693663282388,2.0228,1638.1,1637.9,1.06088238]
[1693663287094,2.0228,1638.1,1638.0,0.41829744]
[1693663287788,2.0228,1638.1,1637.8,3.24181751]
[1693663287955,2.0228,1638.1,1637.9,1.38506042]
[1693663288155,2.0228,1638.1,1637.9,0.32418175]
[1693663288379,1.9988,1638.1,1637.9,0.32418175]
[1693663293595,1.9988,1638.1,1638.0,1.06087958]
[1693663299397,2.57641109,1638.2,1638.0,1.06087958]
[1693663299575,2.0975,1638.2,1638.0,1.06087958]
[1693663300805,2.0975,1638.2,1637.9,2.97976877]
[1693663300992,2.0975,1638.2,1638.0,1.06086074]
[1693663302288,2.0975,1638.2,1638.1,0.41852063]
[1693663302784,2.0975,1638.2,1638.0,0.6379331]
[1693663308311,7.24010404,1638.2,1637.9,1.59470744]
[1693663308512,3.56185404,1638.1,1638.0,1.06087761]
[1693663308712,8.11285404,1638.1,1637.8,0.6379331]
[1693663308918,1.551,1638.0,1637.8,0.6379331]
[1693663309114,6.6068,1638.0,1637.8,0.6379331]
[1693663309319,6.6068,1638.0,1637.8,1.69892015]
[1693663309320,7.6236654,1638.0,1637.8,1.69892015]
[1693663309492,7.6236654,1638.0,1637.9,1.06098705]
[1693663309694,8.1036654,1638.0,1637.8,0.6379331]
[1693663309894,7.6236654,1638.0,1637.8,0.6379331]
[1693663311698,7.6236654,1638.0,1637.7,1.59470744]
[1693663311933,6.6068,1638.0,1637.7,1.59470744]
[1693663312428,6.6068,1638.0,1637.8,1.69892015]
[1693663312732,6.6068,1638.0,1637.9,1.06098705]
[1693663312933,7.0868,1638.0,1637.9,1.06098705]
[1693663313102,7.0868,1638.0,1637.8,0.6379331]
[1693663314732,5.5358,1638.0,1637.8,0.6379331]
[1693663314934,2.0558,1638.0,1637.8,0.6379331]
[1693663315135,2.0558,1638.0,1637.8,1.59470744]
[1693663315314,2.0558,1638.0,1637.9,1.69892015]
[1693663315709,3.0,1638.1,1637.9,1.69892015]
[1693663315930,2.2014,1638.1,1638.0,1.06098705]
[1693663316318,2.2014,1638.1,1637.9,2.65569449]
[1693663316624,2.2014,1638.1,1638.0,1.06098705]
[1693663316933,2.2014,1638.1,1637.9,2.65569449]
[1693663317140,2.2014,1638.1,1638.0,1.06098705]
[1693663317438,2.2014,1638.1,1638.0,1.47981442]
[1693663317855,2.2014,1638.1,1638.0,1.47968732]
[1693663320405,0.48696331,1638.2,1638.0,1.47968732]
[1693663320606,4.551,1638.3,1638.0,0.41882737]
[1693663320808,9.81105404,1638.3,1638.0,0.41882737]
[1693663321258,11.22435731,1638.3,1638.0,0.41882737]
[1693663321949,9.81105404,1638.3,1638.1,1.06086201]